[Event "Early-Titled-Tuesday-Blitz-February-27-2024"]
[Site "Chess.com"]
[Date "2024.02.27"]
[Round "1"]
[White "Rdeux42"]
[Black "Yan_Dyomin2010"]
[Result "0-1"]
[WhiteElo "2431"]
[BlackElo "2755"]
[TimeControl "180+1"]
[EndTime "8:06:33 PST"]
[Termination "Yan_Dyomin2010 won by resignation"]

1. e4 {[%clk 0:03:00.9]} 1... c5 {[%clk 0:03:00.5]} 2. Nf3 {[%clk 0:03:01.1]}
2... Nc6 {[%clk 0:03:00.4]} 3. Bb5 {[%clk 0:03:01.6]} 3... Nf6 {[%clk
0:03:00.2]} 4. e5 {[%clk 0:03:00.9]} 4... Nd5 {[%clk 0:02:59.4]} 5. Nc3 {[%clk
0:03:01.5]} 5... Nc7 {[%clk 0:02:59.1]} 6. Bxc6 {[%clk 0:03:01.7]} 6... dxc6
{[%clk 0:02:59.6]} 7. h3 {[%clk 0:03:02]} 7... h6 {[%clk 0:02:58.2]} 8. d3
{[%clk 0:03:01.6]} 8... g5 {[%clk 0:02:54.5]} 9. Be3 {[%clk 0:02:57.5]} 9... b6
{[%clk 0:02:53.1]} 10. a4 {[%clk 0:02:55.9]} 10... Bf5 {[%clk 0:02:35.7]} 11. a5
{[%clk 0:02:55.6]} 11... Ne6 {[%clk 0:02:35.3]} 12. g4 {[%clk 0:02:44.5]} 12...
Bg6 {[%clk 0:02:33.9]} 13. h4 {[%clk 0:02:45.4]} 13... Bg7 {[%clk 0:02:28.6]}
14. hxg5 {[%clk 0:02:42.2]} 14... hxg5 {[%clk 0:02:28.7]} 15. Rxh8+ {[%clk
0:02:42.2]} 15... Bxh8 {[%clk 0:02:29.6]} 16. Nxg5 {[%clk 0:02:25.4]} 16... Nxg5
{[%clk 0:02:27.5]} 17. Bxg5 {[%clk 0:02:26.3]} 17... Bxe5 {[%clk 0:02:26.8]} 18.
f4 {[%clk 0:02:26.1]} 18... Bxc3+ {[%clk 0:02:25.1]} 19. bxc3 {[%clk 0:02:24.1]}
19... f6 {[%clk 0:02:23]} 20. Bh4 {[%clk 0:02:13.4]} 20... Qd5 {[%clk
0:02:19.4]} 21. axb6 {[%clk 0:01:59.4]} 21... Qh1+ {[%clk 0:02:18.6]} 22. Kd2
{[%clk 0:01:58]} 22... Qxh4 {[%clk 0:02:17.8]} 23. Rxa7 {[%clk 0:01:54.7]} 23...
Qf2+ {[%clk 0:02:16.1]} 24. Kc1 {[%clk 0:01:39.2]} 24... Qxf4+ {[%clk
0:02:15.6]} 25. Kb2 {[%clk 0:01:39.8]} 25... Qb8 {[%clk 0:02:07.8]} 26. Rxa8
{[%clk 0:01:21.3]} 26... Qxa8 {[%clk 0:02:08.7]} 27. Qh1 {[%clk 0:01:11.4]}
27... Kf7 {[%clk 0:02:00.8]} 28. Qb1 {[%clk 0:00:36.6]} 28... Qb7 {[%clk
0:01:58]} 29. Kc1 {[%clk 0:00:26.8]} 29... Kg7 {[%clk 0:01:44.8]} 30. c4 {[%clk
0:00:23.5]} 30... Bf7 {[%clk 0:01:41.6]} 31. Qb2 {[%clk 0:00:22.7]} 31... Kg6
{[%clk 0:01:37.1]} 32. Kd2 {[%clk 0:00:21.5]} 32... Be6 {[%clk 0:01:36.8]} 33.
c3 {[%clk 0:00:17.3]} 33... Bxg4 {[%clk 0:01:35.9]} 34. d4 {[%clk 0:00:17.7]}
34... cxd4 {[%clk 0:01:32.9]} 35. cxd4 {[%clk 0:00:18.6]} 35... Be6 {[%clk
0:01:33.1]} 36. c5 {[%clk 0:00:18.2]} 36... Bc8 {[%clk 0:01:29.2]} 37. Qc2+
{[%clk 0:00:17.5]} 37... f5 {[%clk 0:01:28.8]} 38. Qd1 {[%clk 0:00:17.1]} 38...
Qa6 {[%clk 0:01:26.6]} 39. Qg1+ {[%clk 0:00:18]} 39... Kf7 {[%clk 0:01:26.2]}
40. Qe3 {[%clk 0:00:15.7]} 40... Qa2+ {[%clk 0:01:25]} 41. Ke1 {[%clk 0:00:16]}
41... Qb1+ {[%clk 0:01:24.9]} 42. Kf2 {[%clk 0:00:15.6]} 42... Qc2+ {[%clk
0:01:25.5]} 43. Kg3 {[%clk 0:00:14.8]} 43... Qe4 {[%clk 0:01:24.3]} 44. Qxe4
{[%clk 0:00:13.7]} 44... fxe4 {[%clk 0:01:24.7]} 45. Kf4 {[%clk 0:00:13.8]}
45... Ke6 {[%clk 0:01:25.3]} 46. Kxe4 {[%clk 0:00:13.9]} 46... Ba6 {[%clk
0:01:26]} 47. d5+ {[%clk 0:00:12.4]} 47... cxd5+ {[%clk 0:01:26.6]} 48. Kd4
{[%clk 0:00:13.2]} 48... Bb7 {[%clk 0:01:26.3]} 0-1

[Event "Early-Titled-Tuesday-Blitz-February-27-2024"]
[Site "Chess.com"]
[Date "2024.02.27"]
[Round "1"]
[White "djano"]
[Black "Charodej1"]
[Result "1-0"]
[WhiteElo "2632"]
[BlackElo "2308"]
[TimeControl "180+1"]
[EndTime "8:06:34 PST"]
[Termination "djano won by resignation"]

1. e4 {[%clk 0:03:00.9]} 1... e5 {[%clk 0:02:59.6]} 2. Nf3 {[%clk 0:02:58]} 2...
Nc6 {[%clk 0:02:58]} 3. d4 {[%clk 0:02:58.5]} 3... exd4 {[%clk 0:02:55.9]} 4.
Bc4 {[%clk 0:02:58.6]} 4... Nf6 {[%clk 0:02:26.4]} 5. Ng5 {[%clk 0:02:55.8]}
5... Ne5 {[%clk 0:02:16.8]} 6. Bb3 {[%clk 0:02:55]} 6... h6 {[%clk 0:02:14.5]}
7. f4 {[%clk 0:02:55.2]} 7... hxg5 {[%clk 0:01:33.8]} 8. fxe5 {[%clk 0:02:55.2]}
8... Nxe4 {[%clk 0:01:17.1]} 9. Bd5 {[%clk 0:02:54.3]} 9... Bb4+ {[%clk
0:00:53.5]} 10. c3 {[%clk 0:02:24.4]} 10... dxc3 {[%clk 0:00:53]} 11. Bxf7+
{[%clk 0:01:57.1]} 11... Kxf7 {[%clk 0:00:52.3]} 12. Qb3+ {[%clk 0:01:55.6]}
12... d5 {[%clk 0:00:48.9]} 13. exd6+ {[%clk 0:01:48.6]} 13... Be6 {[%clk
0:00:49.2]} 14. Qxb4 {[%clk 0:01:36.7]} 14... Nf6 {[%clk 0:00:49.9]} 15. Nxc3
{[%clk 0:01:32]} 15... Qxd6 {[%clk 0:00:41.1]} 16. Qxd6 {[%clk 0:01:31.3]} 16...
cxd6 {[%clk 0:00:42]} 17. Bxg5 {[%clk 0:01:31.5]} 17... Rh5 {[%clk 0:00:32.6]}
18. Bf4 {[%clk 0:01:29.3]} 18... d5 {[%clk 0:00:19.9]} 19. O-O {[%clk
0:01:28.3]} 19... Kg8 {[%clk 0:00:19.4]} 20. Rfe1 {[%clk 0:01:23.3]} 20... Re8
{[%clk 0:00:19.4]} 21. Be5 {[%clk 0:01:22.5]} 21... Bf7 {[%clk 0:00:14.9]} 22.
Bxf6 {[%clk 0:01:19]} 22... gxf6 {[%clk 0:00:14.8]} 23. Rxe8+ {[%clk 0:01:17]}
23... Bxe8 {[%clk 0:00:15.7]} 24. Rd1 {[%clk 0:01:17]} 24... Bc6 {[%clk
0:00:16]} 25. Rd4 {[%clk 0:01:15.1]} 25... Re5 {[%clk 0:00:14.9]} 26. Kf2 {[%clk
0:01:14.8]} 26... Rf5+ {[%clk 0:00:15.3]} 27. Ke3 {[%clk 0:01:13.2]} 27... Re5+
{[%clk 0:00:15.4]} 28. Kd2 {[%clk 0:01:13.9]} 28... Kf7 {[%clk 0:00:15.4]} 29.
h4 {[%clk 0:01:13.5]} 29... f5 {[%clk 0:00:14.6]} 30. g3 {[%clk 0:01:13.3]}
30... Kg6 {[%clk 0:00:15]} 31. Ne2 {[%clk 0:01:12.6]} 31... Kf6 {[%clk
0:00:10.1]} 32. Nf4 {[%clk 0:01:12.9]} 32... a6 {[%clk 0:00:10]} 33. a3 {[%clk
0:01:10.4]} 33... b5 {[%clk 0:00:08.3]} 34. Rd3 {[%clk 0:01:09.2]} 34... Bb7
{[%clk 0:00:07.7]} 35. Rc3 {[%clk 0:01:08]} 35... d4 {[%clk 0:00:07.4]} 36. Rc7
{[%clk 0:01:08.1]} 36... Be4 {[%clk 0:00:06.8]} 37. Rd7 {[%clk 0:01:06.6]} 37...
Rc5 {[%clk 0:00:07]} 38. Rxd4 {[%clk 0:00:59.7]} 38... Bd3 {[%clk 0:00:07.7]}
39. Nxd3 {[%clk 0:00:58.8]} 1-0

[Event "Early-Titled-Tuesday-Blitz-February-27-2024"]
[Site "Chess.com"]
[Date "2024.02.27"]
[Round "1"]
[White "orkinyo12345"]
[Black "klimkoj"]
[Result "1-0"]
[WhiteElo "2486"]
[BlackElo "2821"]
[TimeControl "180+1"]
[EndTime "8:06:35 PST"]
[Termination "orkinyo12345 won by resignation"]

1. d4 {[%clk 0:03:00.1]} 1... Nf6 {[%clk 0:02:58.1]} 2. c4 {[%clk 0:02:59.4]}
2... g6 {[%clk 0:02:57.8]} 3. g3 {[%clk 0:02:52.1]} 3... c5 {[%clk 0:02:54.8]}
4. d5 {[%clk 0:02:51]} 4... e6 {[%clk 0:02:44]} 5. Nc3 {[%clk 0:02:50.4]} 5...
exd5 {[%clk 0:02:41.7]} 6. cxd5 {[%clk 0:02:51.3]} 6... Bg7 {[%clk 0:02:39.4]}
7. Bg2 {[%clk 0:02:51.8]} 7... O-O {[%clk 0:02:39.6]} 8. Nf3 {[%clk 0:02:52.4]}
8... d6 {[%clk 0:02:38.3]} 9. O-O {[%clk 0:02:52.5]} 9... Re8 {[%clk 0:02:38.3]}
10. Bf4 {[%clk 0:02:52.2]} 10... Bf5 {[%clk 0:02:30.9]} 11. Nd2 {[%clk
0:02:18.3]} 11... Nh5 {[%clk 0:02:26.7]} 12. e4 {[%clk 0:02:08.7]} 12... Nxf4
{[%clk 0:02:24.2]} 13. gxf4 {[%clk 0:02:09.6]} 13... Bc8 {[%clk 0:02:17.7]} 14.
Nc4 {[%clk 0:02:02.1]} 14... a6 {[%clk 0:02:14.4]} 15. a4 {[%clk 0:02:01.9]}
15... Bh6 {[%clk 0:01:52.7]} 16. Qf3 {[%clk 0:01:56.6]} 16... Qh4 {[%clk
0:01:47.6]} 17. Qg3 {[%clk 0:01:50.7]} 17... Qf6 {[%clk 0:01:39.8]} 18. f5
{[%clk 0:01:26.6]} 18... Bf8 {[%clk 0:01:34.8]} 19. Rad1 {[%clk 0:01:22.3]}
19... Kh8 {[%clk 0:01:04.1]} 20. Nb6 {[%clk 0:01:02.6]} 20... Ra7 {[%clk
0:00:59.3]} 21. Bh3 {[%clk 0:01:00.4]} 21... Bh6 {[%clk 0:00:35.7]} 22. Kh1
{[%clk 0:00:50.4]} 22... gxf5 {[%clk 0:00:30.9]} 23. Nxc8 {[%clk 0:00:47.4]}
23... Rxc8 {[%clk 0:00:31.6]} 24. Bxf5 {[%clk 0:00:46.8]} 24... Rg8 {[%clk
0:00:31.1]} 25. Qh3 {[%clk 0:00:45.3]} 25... Ra8 {[%clk 0:00:20.5]} 26. Rg1
{[%clk 0:00:44.2]} 26... Rxg1+ {[%clk 0:00:19.3]} 27. Rxg1 {[%clk 0:00:45.1]}
27... a5 {[%clk 0:00:18.4]} 28. e5 {[%clk 0:00:40.7]} 28... Qxe5 {[%clk
0:00:13.8]} 29. Qxh6 {[%clk 0:00:37.4]} 1-0

[Event "Early-Titled-Tuesday-Blitz-February-27-2024"]
[Site "Chess.com"]
[Date "2024.02.27"]
[Round "1"]
[White "Juwen"]
[Black "rhwr"]
[Result "1-0"]
[WhiteElo "2618"]
[BlackElo "2284"]
[TimeControl "180+1"]
[EndTime "8:06:35 PST"]
[Termination "Juwen won by resignation"]

1. e4 {[%clk 0:02:57.9]} 1... c5 {[%clk 0:02:59.5]} 2. Nf3 {[%clk 0:02:57.8]}
2... d6 {[%clk 0:02:59.9]} 3. Bb5+ {[%clk 0:02:56.2]} 3... Nd7 {[%clk
0:02:58.9]} 4. O-O {[%clk 0:02:55.2]} 4... a6 {[%clk 0:02:59.8]} 5. Bd3 {[%clk
0:02:54.8]} 5... g6 {[%clk 0:02:58.3]} 6. c3 {[%clk 0:02:54.3]} 6... Bg7 {[%clk
0:02:58.9]} 7. Bc2 {[%clk 0:02:54.5]} 7... Ngf6 {[%clk 0:02:59.4]} 8. d4 {[%clk
0:02:54.8]} 8... O-O {[%clk 0:02:59.2]} 9. a4 {[%clk 0:02:55.4]} 9... b6 {[%clk
0:02:56.9]} 10. Nbd2 {[%clk 0:02:52.2]} 10... Bb7 {[%clk 0:02:56.7]} 11. Re1
{[%clk 0:02:52.4]} 11... e5 {[%clk 0:02:54.5]} 12. dxe5 {[%clk 0:02:50.2]} 12...
dxe5 {[%clk 0:02:54.3]} 13. Nc4 {[%clk 0:02:49.9]} 13... Qc7 {[%clk 0:02:54]}
14. Bd2 {[%clk 0:02:37.5]} 14... Rfd8 {[%clk 0:02:48.9]} 15. Qc1 {[%clk
0:02:36.3]} 15... b5 {[%clk 0:02:46]} 16. Na3 {[%clk 0:02:35.1]} 16... Bc6
{[%clk 0:02:44.9]} 17. axb5 {[%clk 0:02:33.6]} 17... axb5 {[%clk 0:02:44.8]} 18.
Bh6 {[%clk 0:02:26.7]} 18... Bh8 {[%clk 0:02:44.7]} 19. h3 {[%clk 0:02:08.7]}
19... Qb7 {[%clk 0:02:44.6]} 20. Ng5 {[%clk 0:02:01]} 20... c4 {[%clk
0:02:31.1]} 21. Qe3 {[%clk 0:02:00.6]} 21... Qb6 {[%clk 0:01:58.7]} 22. Qf3
{[%clk 0:01:48]} 22... Nc5 {[%clk 0:01:43]} 23. Rad1 {[%clk 0:01:45.7]} 23...
Rxd1 {[%clk 0:01:36.7]} 24. Rxd1 {[%clk 0:01:46.6]} 24... Rd8 {[%clk 0:01:35]}
25. Rxd8+ {[%clk 0:01:37.1]} 25... Qxd8 {[%clk 0:01:34.6]} 26. Qe3 {[%clk
0:01:37.4]} 26... Nd3 {[%clk 0:01:24.1]} 27. b3 {[%clk 0:01:29]} 27... Nb2
{[%clk 0:00:56.2]} 28. Qc5 {[%clk 0:01:19.4]} 28... Qe8 {[%clk 0:00:37.3]} 29.
bxc4 {[%clk 0:01:14.3]} 29... bxc4 {[%clk 0:00:37.7]} 30. Qb4 {[%clk 0:01:10]}
30... Nd3 {[%clk 0:00:32.5]} 31. Qxc4 {[%clk 0:01:08.2]} 31... Nf4 {[%clk
0:00:32.3]} 32. Bb3 {[%clk 0:01:04.4]} 32... Bg7 {[%clk 0:00:21.9]} 33. Nxf7
{[%clk 0:00:58.5]} 33... Kf8 {[%clk 0:00:20]} 34. Qc5+ {[%clk 0:00:52.6]} 1-0

[Event "Early-Titled-Tuesday-Blitz-February-27-2024"]
[Site "Chess.com"]
[Date "2024.02.27"]
[Round "1"]
[White "GoValya"]
[Black "vishwa_vijeta"]
[Result "0-1"]
[WhiteElo "2277"]
[BlackElo "2613"]
[TimeControl "180+1"]
[EndTime "8:06:35 PST"]
[Termination "vishwa_vijeta won by resignation"]

1. d4 {[%clk 0:02:59.6]} 1... c5 {[%clk 0:02:56]} 2. d5 {[%clk 0:02:58.8]} 2...
d6 {[%clk 0:02:52.9]} 3. g3 {[%clk 0:02:58]} 3... g6 {[%clk 0:02:52.6]} 4. Bg2
{[%clk 0:02:56.2]} 4... Bg7 {[%clk 0:02:52.1]} 5. Nf3 {[%clk 0:02:56.4]} 5... b5
{[%clk 0:02:44.3]} 6. O-O {[%clk 0:02:50.5]} 6... Nf6 {[%clk 0:02:37.8]} 7. c4
{[%clk 0:02:49.1]} 7... b4 {[%clk 0:02:33.8]} 8. a3 {[%clk 0:02:44.2]} 8... a5
{[%clk 0:02:33.5]} 9. axb4 {[%clk 0:02:43.7]} 9... cxb4 {[%clk 0:02:34]} 10. Be3
{[%clk 0:02:42.9]} 10... O-O {[%clk 0:02:31.3]} 11. Nd4 {[%clk 0:02:38.7]} 11...
Bb7 {[%clk 0:02:25.2]} 12. Nd2 {[%clk 0:02:23.7]} 12... Ng4 {[%clk 0:02:14.7]}
13. Nc6 {[%clk 0:02:04.8]} 13... Bxc6 {[%clk 0:01:53.8]} 14. dxc6 {[%clk
0:02:02.8]} 14... Nxe3 {[%clk 0:01:53]} 15. fxe3 {[%clk 0:01:55.7]} 15... Ra7
{[%clk 0:01:47.5]} 16. Qc2 {[%clk 0:01:46.4]} 16... Qb6 {[%clk 0:01:38.9]} 17.
c5 {[%clk 0:01:40]} 17... dxc5 {[%clk 0:01:31.9]} 18. Nc4 {[%clk 0:01:39.5]}
18... Qc7 {[%clk 0:01:31.7]} 19. Qe4 {[%clk 0:01:24.2]} 19... Rc8 {[%clk
0:01:24.4]} 20. Qd5 {[%clk 0:00:53.6]} 20... Bf6 {[%clk 0:01:09.5]} 21. Qxc5
{[%clk 0:00:41.4]} 21... Nxc6 {[%clk 0:00:48.8]} 22. Bxc6 {[%clk 0:00:24.3]}
22... Qxc6 {[%clk 0:00:47.4]} 23. Qxa7 {[%clk 0:00:24.3]} 23... Qxc4 {[%clk
0:00:46.8]} 24. Rxa5 {[%clk 0:00:15.3]} 24... Qxe2 {[%clk 0:00:42.4]} 25. Ra6
{[%clk 0:00:11.5]} 25... Rc2 {[%clk 0:00:40]} 26. Qa8+ {[%clk 0:00:10.3]} 26...
Kg7 {[%clk 0:00:40]} 27. Qh1 {[%clk 0:00:07.9]} 27... Qxe3+ {[%clk 0:00:39.8]}
0-1

[Event "Early-Titled-Tuesday-Blitz-February-27-2024"]
[Site "Chess.com"]
[Date "2024.02.27"]
[Round "1"]
[White "JaackCamel"]
[Black "Boorchess"]
[Result "1-0"]
[WhiteElo "2194"]
[BlackElo "2564"]
[TimeControl "180+1"]
[EndTime "8:06:35 PST"]
[Termination "JaackCamel won by checkmate"]

1. d4 {[%clk 0:02:59.7]} 1... Nf6 {[%clk 0:02:57.8]} 2. c4 {[%clk 0:02:58.6]}
2... e6 {[%clk 0:02:57.4]} 3. Nc3 {[%clk 0:02:57.8]} 3... Bb4 {[%clk 0:02:57]}
4. Qc2 {[%clk 0:02:57.2]} 4... d5 {[%clk 0:02:56.9]} 5. e3 {[%clk 0:02:53.5]}
5... O-O {[%clk 0:02:55.2]} 6. Nf3 {[%clk 0:02:52.9]} 6... b6 {[%clk 0:02:53.9]}
7. Bd3 {[%clk 0:02:51.8]} 7... Bb7 {[%clk 0:02:53.4]} 8. O-O {[%clk 0:02:51.5]}
8... dxc4 {[%clk 0:02:50.4]} 9. Bxc4 {[%clk 0:02:51]} 9... Nbd7 {[%clk
0:02:49.6]} 10. Be2 {[%clk 0:02:47.2]} 10... a6 {[%clk 0:02:45.2]} 11. a3 {[%clk
0:02:40.4]} 11... Bd6 {[%clk 0:02:42.7]} 12. b4 {[%clk 0:02:37]} 12... Qe7
{[%clk 0:02:40.6]} 13. Bb2 {[%clk 0:02:36]} 13... e5 {[%clk 0:02:38.2]} 14. Rfe1
{[%clk 0:02:31.4]} 14... e4 {[%clk 0:02:35.3]} 15. Nd2 {[%clk 0:02:30.8]} 15...
Rfe8 {[%clk 0:02:27.5]} 16. Nf1 {[%clk 0:02:30.5]} 16... h5 {[%clk 0:02:23.5]}
17. Rad1 {[%clk 0:02:28]} 17... Nf8 {[%clk 0:02:20.7]} 18. Ng3 {[%clk
0:02:26.2]} 18... g6 {[%clk 0:02:17.7]} 19. Nf1 {[%clk 0:02:19.4]} 19... h4
{[%clk 0:02:13.9]} 20. h3 {[%clk 0:02:19.4]} 20... N8h7 {[%clk 0:02:10.3]} 21.
d5 {[%clk 0:02:14.8]} 21... Rad8 {[%clk 0:02:00.1]} 22. Rd2 {[%clk 0:02:12.9]}
22... Ng5 {[%clk 0:01:54.9]} 23. Red1 {[%clk 0:02:10.6]} 23... Nd7 {[%clk
0:01:46.8]} 24. Na2 {[%clk 0:02:02.9]} 24... f5 {[%clk 0:01:43.1]} 25. Qc3
{[%clk 0:01:58.5]} 25... Ne5 {[%clk 0:01:40.5]} 26. Nc1 {[%clk 0:01:56.5]} 26...
Kh7 {[%clk 0:01:38.8]} 27. Nb3 {[%clk 0:01:55.9]} 27... Rg8 {[%clk 0:01:27.1]}
28. Nd4 {[%clk 0:01:55.1]} 28... Bxd5 {[%clk 0:01:14.4]} 29. Bxa6 {[%clk
0:01:33.8]} 29... Ba8 {[%clk 0:00:59.4]} 30. Bc4 {[%clk 0:01:27.3]} 30... Nxc4
{[%clk 0:00:55.1]} 31. Qxc4 {[%clk 0:01:27.3]} 31... Bd5 {[%clk 0:00:46.8]} 32.
Qc3 {[%clk 0:01:25]} 32... Be5 {[%clk 0:00:47]} 33. Rc1 {[%clk 0:01:20.4]} 33...
Rge8 {[%clk 0:00:36.8]} 34. Rdc2 {[%clk 0:01:19.9]} 34... Nf7 {[%clk 0:00:24]}
35. Qe1 {[%clk 0:01:19.6]} 35... Qg5 {[%clk 0:00:21.1]} 36. Rxc7 {[%clk
0:01:12.7]} 36... Bxc7 {[%clk 0:00:20.5]} 37. Rxc7 {[%clk 0:01:12.5]} 37... Re7
{[%clk 0:00:21]} 38. Qc3 {[%clk 0:01:10.8]} 38... Rdd7 {[%clk 0:00:20.4]} 39.
Rc8 {[%clk 0:01:10.6]} 39... Rd8 {[%clk 0:00:19]} 40. Nxf5 {[%clk 0:01:08.3]}
40... Ne5 {[%clk 0:00:16.8]} 41. Nxe7 {[%clk 0:01:03.6]} 41... Qxe7 {[%clk
0:00:15.2]} 42. Rxd8 {[%clk 0:01:01.6]} 42... Qxd8 {[%clk 0:00:14.8]} 43. Qxe5
{[%clk 0:01:02.2]} 43... Qg8 {[%clk 0:00:15]} 44. Qe7+ {[%clk 0:01:00.5]} 44...
Kh6 {[%clk 0:00:14.9]} 45. Qxh4# {[%clk 0:01:00.5]} 1-0

[Event "Early-Titled-Tuesday-Blitz-February-27-2024"]
[Site "Chess.com"]
[Date "2024.02.27"]
[Round "1"]
[White "Szparu"]
[Black "Road2GM3000"]
[Result "1-0"]
[WhiteElo "2761"]
[BlackElo "2433"]
[TimeControl "180+1"]
[EndTime "8:06:37 PST"]
[Termination "Szparu won by resignation"]

1. e4 {[%clk 0:03:00.9]} 1... c5 {[%clk 0:03:00.1]} 2. d4 {[%clk 0:02:59.4]}
2... cxd4 {[%clk 0:03:00]} 3. c3 {[%clk 0:02:59.6]} 3... d3 {[%clk 0:02:59.9]}
4. c4 {[%clk 0:02:58.6]} 4... Nc6 {[%clk 0:03:00.1]} 5. Nc3 {[%clk 0:02:56.9]}
5... g6 {[%clk 0:03:00.7]} 6. Bxd3 {[%clk 0:02:56.1]} 6... Bg7 {[%clk
0:02:59.9]} 7. h3 {[%clk 0:02:54.5]} 7... d6 {[%clk 0:03:00.1]} 8. Nf3 {[%clk
0:02:54.3]} 8... Nf6 {[%clk 0:02:59.9]} 9. O-O {[%clk 0:02:54]} 9... O-O {[%clk
0:02:59.5]} 10. Be3 {[%clk 0:02:52.8]} 10... h6 {[%clk 0:02:49.1]} 11. Qd2
{[%clk 0:02:53]} 11... Kh7 {[%clk 0:02:49.3]} 12. Rfd1 {[%clk 0:02:51.4]} 12...
Be6 {[%clk 0:02:49.3]} 13. Rac1 {[%clk 0:02:51.2]} 13... Nd7 {[%clk 0:02:49.1]}
14. Nd5 {[%clk 0:02:50]} 14... Bxd5 {[%clk 0:02:48.1]} 15. cxd5 {[%clk
0:02:42.1]} 15... Nce5 {[%clk 0:02:48.5]} 16. Nxe5 {[%clk 0:02:41.9]} 16... Nxe5
{[%clk 0:02:48.5]} 17. Be2 {[%clk 0:02:42.3]} 17... Rc8 {[%clk 0:02:47.7]} 18.
Bxa7 {[%clk 0:02:34.1]} 18... Ra8 {[%clk 0:02:47.6]} 19. Qe3 {[%clk 0:02:13.7]}
19... Qa5 {[%clk 0:02:46.1]} 20. Bd4 {[%clk 0:02:14.3]} 20... Qxa2 {[%clk
0:02:41]} 21. Rc7 {[%clk 0:02:12.6]} 21... Rfe8 {[%clk 0:02:09.7]} 22. f4 {[%clk
0:02:12.3]} 22... Rac8 {[%clk 0:01:24.2]} 23. Rxc8 {[%clk 0:02:10.3]} 23... Rxc8
{[%clk 0:01:25.1]} 24. fxe5 {[%clk 0:02:10.7]} 24... dxe5 {[%clk 0:01:25.6]} 25.
Bc3 {[%clk 0:02:09.5]} 25... Qa4 {[%clk 0:01:19.9]} 26. Rf1 {[%clk 0:02:00.4]}
26... Kg8 {[%clk 0:01:15.7]} 27. Kh1 {[%clk 0:01:54.5]} 27... b5 {[%clk
0:01:13.5]} 28. Rc1 {[%clk 0:01:34.3]} 28... Qb3 {[%clk 0:01:01.9]} 29. Bd2
{[%clk 0:01:29.6]} 29... Rxc1+ {[%clk 0:01:01.6]} 30. Bxc1 {[%clk 0:01:30.1]}
30... Qc2 {[%clk 0:01:02.3]} 31. Bxb5 {[%clk 0:01:21]} 31... Qd1+ {[%clk
0:01:01.3]} 32. Qg1 {[%clk 0:01:14.2]} 32... Qb3 {[%clk 0:00:55.2]} 33. Qf1
{[%clk 0:01:10.5]} 33... Qb4 {[%clk 0:00:47.7]} 34. Bc4 {[%clk 0:01:06.5]} 34...
Bf6 {[%clk 0:00:44.3]} 35. b3 {[%clk 0:01:04.9]} 35... Kg7 {[%clk 0:00:41.4]}
36. Kh2 {[%clk 0:00:57]} 36... h5 {[%clk 0:00:40.3]} 37. Qd1 {[%clk 0:00:47.1]}
37... Qc3 {[%clk 0:00:31.6]} 38. Qd2 {[%clk 0:00:43.5]} 38... Qa1 {[%clk
0:00:31.8]} 39. d6 {[%clk 0:00:37.7]} 39... exd6 {[%clk 0:00:30.7]} 40. Qh6+
{[%clk 0:00:37.3]} 40... Kg8 {[%clk 0:00:30.4]} 41. Qxg6+ {[%clk 0:00:37.6]}
41... Kh8 {[%clk 0:00:30.1]} 42. Qxf6+ {[%clk 0:00:37.1]} 1-0

[Event "Early-Titled-Tuesday-Blitz-February-27-2024"]
[Site "Chess.com"]
[Date "2024.02.27"]
[Round "1"]
[White "emeli_chess"]
[Black "GianmarcoVaR"]
[Result "0-1"]
[WhiteElo "2417"]
[BlackElo "2729"]
[TimeControl "180+1"]
[EndTime "8:06:38 PST"]
[Termination "GianmarcoVaR won by resignation"]

1. d4 {[%clk 0:03:00.9]} 1... Nf6 {[%clk 0:02:59.9]} 2. c4 {[%clk 0:03:00.2]}
2... e6 {[%clk 0:03:00.1]} 3. Nc3 {[%clk 0:03:00]} 3... Bb4 {[%clk 0:03:00]} 4.
Qc2 {[%clk 0:03:00.4]} 4... O-O {[%clk 0:02:59.9]} 5. e4 {[%clk 0:03:00.4]} 5...
d5 {[%clk 0:02:57]} 6. e5 {[%clk 0:03:00.3]} 6... Ne4 {[%clk 0:02:57.7]} 7. Bd3
{[%clk 0:03:00.4]} 7... c5 {[%clk 0:02:57.1]} 8. Nf3 {[%clk 0:03:00.5]} 8...
cxd4 {[%clk 0:02:52.1]} 9. Nxd4 {[%clk 0:03:00.2]} 9... Nd7 {[%clk 0:02:52.7]}
10. Bf4 {[%clk 0:03:00.3]} 10... Qh4 {[%clk 0:02:34.1]} 11. g3 {[%clk
0:03:00.2]} 11... Qh5 {[%clk 0:02:32.5]} 12. O-O {[%clk 0:03:00.1]} 12... Bxc3
{[%clk 0:02:26.1]} 13. bxc3 {[%clk 0:02:59.8]} 13... Nxe5 {[%clk 0:02:25.7]} 14.
Bxe4 {[%clk 0:02:31.6]} 14... dxe4 {[%clk 0:02:23.3]} 15. Qxe4 {[%clk 0:02:31]}
15... Ng4 {[%clk 0:02:23.4]} 16. Qh1 {[%clk 0:01:54.6]} 16... e5 {[%clk
0:02:21.3]} 17. h3 {[%clk 0:01:44.9]} 17... Nf6 {[%clk 0:02:20.5]} 18. g4 {[%clk
0:01:31]} 18... Nxg4 {[%clk 0:02:09.5]} 19. hxg4 {[%clk 0:01:30]} 19... Qxg4+
{[%clk 0:02:10.3]} 20. Bg3 {[%clk 0:01:24.4]} 20... exd4 {[%clk 0:02:09.2]} 21.
cxd4 {[%clk 0:01:22.1]} 21... Qxd4 {[%clk 0:02:09.9]} 22. Rac1 {[%clk
0:01:14.4]} 22... Qf6 {[%clk 0:01:58.8]} 23. Rfe1 {[%clk 0:01:12.2]} 23... Bd7
{[%clk 0:01:59]} 24. Qxb7 {[%clk 0:00:41.2]} 24... Bc6 {[%clk 0:01:49]} 25. Qb3
{[%clk 0:00:40.9]} 25... h5 {[%clk 0:01:41]} 26. Be5 {[%clk 0:00:38.2]} 26...
Qf5 {[%clk 0:01:28.9]} 27. Qg3 {[%clk 0:00:36.1]} 27... f6 {[%clk 0:01:29]} 28.
Bd6 {[%clk 0:00:27.7]} 28... Rfe8 {[%clk 0:01:23.1]} 29. Re3 {[%clk 0:00:25.4]}
29... Rxe3 {[%clk 0:01:20.7]} 30. fxe3 {[%clk 0:00:25.2]} 30... Rd8 {[%clk
0:01:11]} 31. c5 {[%clk 0:00:24.4]} 31... Re8 {[%clk 0:01:00.4]} 32. Rf1 {[%clk
0:00:24]} 32... Qd5 {[%clk 0:01:00.2]} 33. Rxf6 {[%clk 0:00:23]} 33... Rxe3
{[%clk 0:00:46.7]} 34. Rf8+ {[%clk 0:00:18.5]} 34... Kh7 {[%clk 0:00:46.6]} 35.
Kh2 {[%clk 0:00:11.6]} 0-1